bitfinex/quotes_SOLUSD_20260117
["timestamp","ask_amount","ask_price","bid_price","bid_amount"]
[1768671884476,4.29336864,144.16,144.13,9.60276943]
[1768671885766,4.29336864,144.16,144.13,2.66466775]
[1768671886687,11.23031101,144.16,144.13,2.66466775]
[1768671887390,4.29336864,144.16,144.13,2.66466775]
[1768671891395,2.2206418,144.16,144.13,2.66466775]
[1768671893297,2.2206418,144.16,144.13,9.60275984]
[1768671897294,4.29336864,144.16,144.13,9.60275984]
[1768671901608,2.2206418,144.16,144.13,9.60275984]
[1768671901903,4.29336864,144.16,144.13,9.60275984]
[1768671902607,4.29336864,144.16,144.13,9.54275984]
[1768671905400,2.2206418,144.16,144.13,9.54275984]
[1768671925660,4.2909842,144.16,144.13,9.54275984]
[1768671930765,4.3711984,144.17,144.14,2.58000416]
[1768671934775,2.300856,144.17,144.14,9.517532]
[1768671938576,2.300856,144.17,144.14,9.457532]
[1768671938772,9.23736887,144.17,144.14,2.52000416]
[1768671938949,11.30771127,144.17,144.14,2.52000416]
[1768671939149,2.0703424,144.16,144.14,2.52000416]
[1768671940971,11.30771127,144.17,144.14,2.52000416]
[1768671942585,4.43524352,144.15,144.12,2.72516009]
[1768671942755,4.43524352,144.15,144.12,9.66376765]
[1768671944974,2.0703424,144.15,144.13,2.72516009]
[1768671948993,9.30215786,144.16,144.13,2.72516009]
[1768671949297,2.0703424,144.15,144.13,2.66516009]
[1768671950684,9.30215786,144.16,144.13,2.66516009]
[1768671950882,2.42626074,144.13,144.08,17.35130999]
[1768671951088,2.0703424,144.12,144.08,17.35130999]
[1768671951285,2.0703424,144.12,144.09,2.72516009]
[1768671951764,2.0703424,144.11,144.09,2.72516009]
[1768671952471,2.0703424,144.1,144.08,2.67477301]
[1768671953973,9.36587708,144.11,144.08,2.67477301]
[1768671954175,4.49717837,144.09,144.06,9.61627511]
[1768671955591,2.42683597,144.09,144.06,9.61627511]
[1768671955782,4.49717837,144.09,144.06,9.61627511]
[1768671956382,2.42683597,144.09,144.06,9.61627511]
[1768671956564,4.49717837,144.09,144.06,9.61627511]
[1768671957887,2.0703424,144.09,144.07,2.67477301]
[1768671959789,4.49517462,144.09,144.06,9.6161219]
[1768671960193,2.0703424,144.09,144.07,2.67477301]
[1768671961197,4.49517462,144.1,144.07,2.67477301]
[1768671962173,2.0703424,144.1,144.08,2.67477301]
[1768671962373,2.0703424,144.11,144.08,2.67477301]
[1768671963069,2.0703424,144.11,144.08,6.94040602]
[1768671963286,2.0703424,144.11,144.09,2.67477301]
[1768671964295,2.0703424,144.1,144.09,2.67477301]
[1768671964808,9.36166323,144.12,144.09,2.67477301]
[1768671964974,2.0703424,144.1,144.09,2.67477301]
[1768671969381,2.07195163,144.1,144.09,2.67477301]
[1768671969582,9.36166323,144.12,144.09,2.67477301]
[1768671969782,2.07195163,144.1,144.09,2.67477301]
[1768671972392,2.07195163,144.11,144.09,2.67477301]
[1768671979110,9.36166323,144.12,144.09,2.67477301]
[1768671979287,2.07195163,144.11,144.09,2.67477301]
[1768671981906,11.43361486,144.12,144.09,2.67477301]
[1768671988499,9.0108058,144.12,144.09,2.67477301]
[1768671989504,11.75454735,144.12,144.09,2.67477301]
[1768672002500,2.690231,144.11,144.09,2.67477301]
[1768672002705,2.690231,144.11,144.08,6.94057025]
[1768672002930,2.690231,144.1,144.08,6.94057025]
[1768672008329,9.62989732,144.1,144.07,2.47661226]
[1768672008534,11.70184895,144.1,144.07,2.47661226]
[1768672012644,2.48777113,144.09,144.06,2.67298081]
[1768672013040,4.55972276,144.09,144.06,2.67298081]
[1768672015949,2.48777113,144.09,144.06,9.61413583]
[1768672018163,2.48777113,144.09,144.07,2.67298081]
[1768672018331,11.49889484,144.11,144.07,2.67298081]
[1768672018856,2.48777113,144.1,144.07,2.67298081]
[1768672020148,2.48777113,144.11,144.08,6.94058856]
[1768672020350,2.48777113,144.11,144.08,9.61356937]
[1768672022930,11.49857646,144.12,144.09,2.67298081]
[1768672023662,4.55972276,144.12,144.09,2.67298081]
[1768672024154,2.48777113,144.12,144.09,2.67298081]
[1768672024352,17.68777113,144.14,144.1,2.67298081]
[1768672024764,19.75972276,144.14,144.1,2.67298081]
[1768672024961,19.75972276,144.14,144.11,2.67298081]
[1768672025265,4.55972276,144.14,144.11,2.67298081]
[1768672025577,11.49664043,144.16,144.12,2.67298081]
[1768672025879,5.19559261,144.15,144.12,2.61298082]
[1768672026177,11.49664043,144.16,144.12,2.61298082]
[1768672026349,5.19460045,144.15,144.12,2.61298082]
[1768672026533,11.49664043,144.16,144.12,2.61298082]
[1768672026739,7.68225978,144.15,144.12,9.5515204]
[1768672026939,2.48777113,144.15,144.12,9.5515204]
[1768672028162,2.48777113,144.15,144.13,2.67298081]
[1768672028538,11.49664043,144.16,144.13,2.67298081]
[1768672028741,9.4246888,144.16,144.13,2.67298081]
[1768672029036,11.49664043,144.16,144.13,2.67298081]
[1768672029359,11.49513528,144.16,144.13,2.67298081]
[1768672029538,9.4246888,144.16,144.13,2.67298081]
[1768672030858,2.48777113,144.17,144.14,9.61068026]
[1768672038976,11.49449612,144.17,144.14,2.67298081]
[1768672039366,11.49449612,144.17,144.14,2.61298083]
[1768672047279,2.59269721,144.15,144.13,6.93802833]
[1768672047875,9.52943912,144.16,144.13,9.36014918]
[1768672048379,2.59269721,144.16,144.13,9.36014918]
[1768672048553,2.59269721,144.16,144.14,2.42212085]
[1768672051288,11.5995551,144.17,144.14,2.42212085]
[1768672061581,9.52910862,144.17,144.14,2.42212085]
[1768672061782,11.5995551,144.17,144.14,2.42212085]
[1768672064198,2.59627829,144.16,144.12,9.3476868]
[1768672064492,2.59627829,144.16,144.12,2.40902458]
[1768672064696,6.93641141,144.17,144.1,15.2]
[1768672064697,2.59627829,144.13,144.11,2.40902458]
[1768672065296,2.59627829,144.13,144.11,9.34816447]
[1768672068593,11.60511188,144.13,144.1,2.40902458]
[1768672072801,2.42599718,144.12,144.1,2.40902458]
[1768672073892,4.49644366,144.12,144.09,2.49079388]
[1768672075105,11.43524175,144.12,144.09,2.49079388]
[1768672075501,4.49644366,144.11,144.08,2.49079388]
[1768672077312,11.43567078,144.11,144.08,2.49079388]
[1768672077810,11.40567078,144.11,144.08,2.49079388]
[1768672080710,4.49644366,144.1,144.07,2.49079388]
[1768672080899,2.42599718,144.1,144.07,2.49079388]
[1768672081099,4.49644366,144.1,144.07,2.49079388]
[1768672082715,4.49644366,144.1,144.07,9.43182838]
[1768672082898,4.49644366,144.1,144.08,2.49079388]
[1768672085801,2.07044648,144.1,144.08,2.49079388]
[1768672089520,9.3652243,144.11,144.08,2.49079388]
[1768672089822,2.07044648,144.1,144.08,2.49079388]
[1768672091353,2.07211706,144.1,144.08,2.49079388]
[1768672092204,4.49811424,144.1,144.08,2.49079388]
[1768672092406,4.49811424,144.1,144.07,9.43182838]
[1768672092604,11.43780134,144.1,144.07,2.49079388]
[1768672094222,2.07211706,144.09,144.07,2.49079388]
[1768672094721,4.49811424,144.09,144.06,2.49079388]
[1768672095820,11.43830734,144.09,144.06,2.49079388]
[1768672096429,2.07211706,144.08,144.06,2.49079388]
[1768672099027,2.04211706,144.08,144.06,2.49079388]
[1768672100208,2.42599718,144.06,144.04,9.43330984]
[1768672100413,4.43811421,144.06,144.04,9.43330984]
[1768672100929,2.07211706,144.07,144.04,9.43330984]
[1768672103719,4.5451721,144.07,144.04,9.43330984]
[1768672104023,11.48627125,144.07,144.04,2.49079388]
[1768672107039,9.01321621,144.07,144.04,2.49079388]
[1768672108743,4.5451721,144.06,144.03,9.39822419]
[1768672109138,11.48674757,144.06,144.03,2.45542661]
[1768672113925,11.45674757,144.06,144.03,2.45542661]
[1768672116849,4.57834415,144.05,144.02,2.77474214]
[1768672117037,2.47622709,144.04,144.02,2.77474214]
[1768672117825,2.07211706,144.05,144.02,2.77474214]
[1768672118031,9.01428994,144.05,144.02,2.77474214]
[1768672123764,9.44795207,144.06,144.03,2.57474214]
[1768672123965,11.52006913,144.06,144.03,2.57474214]
[1768672128473,11.49006913,144.06,144.03,2.57474214]
[1768672135447,2.07211706,144.06,144.04,2.594389]
[1768672135648,9.53839454,144.07,144.04,2.594389]
[1768672135649,9.01328298,144.07,144.04,2.594389]
[1768672136576,11.6105116,144.07,144.04,2.594389]
[1768672138282,6.94116592,144.07,144.04,2.594389]
[1768672140792,9.01328298,144.07,144.04,2.594389]
[1768672142789,6.94116592,144.07,144.04,2.594389]
[1768672147798,9.53839454,144.07,144.04,2.594389]
[1768672148895,11.6105116,144.07,144.04,2.594389]
[1768672153309,11.61131013,144.07,144.04,2.594389]
[1768672154287,2.59722862,144.06,144.03,2.594389]
[1768672154480,2.59722862,144.05,144.02,9.73765979]
[1768672154693,2.59722862,144.05,144.03,2.594389]
[1768672154909,2.59722862,144.06,144.03,2.594389]
[1768672155806,6.94203401,144.05,144.03,2.594389]
[1768672156098,9.53926263,144.05,144.02,2.794389]
[1768672159111,11.61217822,144.05,144.02,2.794389]
[1768672161806,9.53926263,144.05,144.02,2.794389]
[1768672165917,2.59722862,144.05,144.02,9.73780798]
[1768672166102,2.59722862,144.05,144.03,2.37256797]
[1768672175209,2.54786193,144.04,144.02,7.14341898]
[1768672175597,2.54786193,144.04,144.02,9.52833442]
[1768672175806,9.48993642,144.05,144.02,9.52833442]
[1768672176722,9.48993642,144.05,144.02,2.58491544]
[1768672177626,2.54786193,144.04,144.02,0.2]
[1768672178211,9.49039982,144.04,144.02,0.2]
[1768672179619,11.56331541,144.04,144.02,0.2]
[1768672182226,2.54786193,144.02,144.01,0.2]
[1768672182426,2.54786193,144.02,144.0,2.58491544]
[1768672182632,4.62077752,144.03,144.0,2.58491544]
[1768672184201,6.94253789,144.04,144.01,2.38491544]
[1768672191736,2.54786193,144.04,144.01,2.38491544]
[1768672194327,9.49066035,144.04,144.01,2.38491544]
[1768672213655,11.56445792,144.04,144.01,2.38491544]
[1768672215654,9.49066035,144.04,144.01,2.38491544]
[1768672215862,11.56445792,144.04,144.01,2.38491544]
[1768672223868,9.49066035,144.04,144.01,2.38491544]
[1768672226162,11.56445792,144.04,144.01,2.38491544]
[1768672230270,9.49066035,144.04,144.01,2.38491544]
[1768672231364,6.94279842,144.04,144.01,2.38491544]
[1768672234269,9.42560025,144.04,144.01,2.38491544]
[1768672235875,9.42485473,144.05,144.02,2.56495528]
[1768672236081,2.48280183,144.07,144.03,2.56495528]
[1768672236370,9.42414821,144.07,144.03,2.56495528]
[1768672236547,11.49794578,144.07,144.03,2.56495528]
[1768672237572,2.48280183,144.06,144.03,2.56495528]
[1768672237960,4.5565994,144.06,144.03,2.56495528]
[1768672238661,2.48280183,144.06,144.03,2.56495528]
[1768672240576,2.48280183,144.06,144.03,9.50788594]
[1768672243471,2.48280183,144.06,144.03,11.58168351]
[1768672245355,9.42414821,144.07,144.04,2.56495528]
[1768672247490,2.48280183,144.07,144.04,9.50745596]
[1768672251082,2.48280183,144.07,144.04,11.58125353]
[1768672252083,2.48280183,144.07,144.04,11.52125354]
[1768672252658,2.48280183,144.07,144.04,9.44745597]
[1768672253683,2.48142736,144.06,144.03,9.01668944]
[1768672254064,2.48142736,144.06,144.03,11.55586739]
[1768672254383,2.48142736,144.06,144.03,9.48206982]
[1768672254569,2.48142736,144.06,144.03,6.94289187]
[1768672255063,2.48142736,144.05,144.02,11.55627369]
[1768672255264,2.48142736,144.05,144.02,6.94329817]
[1768672258989,2.48142736,144.05,144.02,9.48247612]
[1768672259164,2.48142736,144.05,144.02,11.55627369]
[1768672259787,2.48142736,144.05,144.02,9.48247612]
[1768672262083,2.48142736,144.05,144.01,26.84304573]
[1768672262292,2.48142736,144.05,144.02,2.53917795]
[1768672262482,2.48142736,144.04,144.01,11.55693774]
[1768672263890,2.48142736,144.04,144.01,9.48314017]
[1768672271204,9.42346531,144.05,144.02,2.53917795]
[1768672271378,2.48142736,144.05,144.02,9.48260772]
[1768672271709,2.48142736,144.04,144.01,9.48301545]
[1768672271888,2.45142736,144.04,144.01,9.48301545]
[1768672273108,9.01643854,144.04,144.0,9.68353958]
[1768672273311,9.0165703,144.04,144.0,9.68353958]
[1768672273900,2.48142736,144.03,144.0,9.68353958]
[1768672274096,2.48142736,144.03,144.0,0.2]
[1768672275105,9.42456037,144.03,144.0,0.2]
[1768672275705,9.42456037,144.03,144.0,2.73917795]
[1768672277407,11.4984897,144.03,144.0,2.73917795]
[1768672279308,11.4984897,144.03,144.0,9.68361111]
[1768672279608,4.55535669,144.03,144.0,9.68361111]
[1768672279806,2.48142736,144.03,144.0,9.68361111]
[1768672280611,4.55535669,144.03,144.0,9.68361111]
[1768672284517,2.48142736,144.03,144.0,9.68361111]
[1768672285310,2.48142736,144.03,144.01,2.3953023]
[1768672285498,9.01661407,144.04,144.01,2.3953023]
[1768672285499,11.40948367,144.04,144.01,2.3953023]
[1768672286013,2.3928696,144.03,144.01,2.3953023]
[1768672286308,2.3928696,144.03,144.0,7.14443316]
[1768672286533,2.3928696,144.03,144.0,9.53973546]
[1768672292116,2.3928696,144.02,144.0,0.2]
[1768672293415,4.54916544,144.01,143.98,9.69598567]
[1768672295225,11.49323252,144.01,143.98,2.75069581]
[1768672295404,2.47523611,144.0,143.98,2.75069581]
[1768672295602,2.44523611,144.0,143.98,2.75069581]
[1768672297817,2.41523608,144.0,143.98,2.75069581]
[1768672298896,2.38523608,144.0,143.98,2.75069581]
[1768672300224,9.01799641,144.01,143.98,2.75069581]
[1768672300830,11.49323252,144.01,143.98,2.75069581]
[1768672304229,2.47523611,144.01,143.98,9.6960599]
[1768672304528,4.54916544,144.01,143.98,9.6960599]
[1768672305027,9.0182842,144.01,143.98,2.55069581]
[1768672305227,11.49352031,144.01,143.98,2.55069581]
[1768672306328,9.41959098,144.01,143.98,2.55069581]
[1768672310237,4.54916544,143.99,143.97,0.2]
[1768672310537,2.47523611,143.99,143.97,0.2]
[1768672311634,9.42034303,143.99,143.97,0.2]
[1768672311937,11.49427236,143.99,143.97,0.2]
[1768672312234,4.59226498,143.98,143.95,2.73158767]
[1768672312415,4.56226498,143.98,143.95,2.73158767]
[1768672313215,4.53226494,143.98,143.95,2.73158767]
[1768672313817,11.4778148,143.98,143.95,2.73158767]
[1768672315732,2.51833565,143.97,143.95,0.2]
[1768672315936,2.48833565,143.97,143.95,0.2]
[1768672316611,11.50840619,143.97,143.95,0.2]
[1768672318239,2.51833565,143.95,143.93,0.2]
[1768672318538,4.59226498,143.94,143.93,0.2]
[1768672319228,4.59226498,143.95,143.93,0.2]
[1768672319932,2.07392933,143.95,143.93,0.2]
[1768672320130,2.51833565,143.94,143.93,0.2]
[1768672320326,11.53960414,143.94,143.92,0.2]
[1768672320736,9.46567481,143.94,143.92,0.2]
[1768672320915,11.53960414,143.94,143.92,0.2]
[1768672321341,2.51833565,143.93,143.92,0.2]
[1768672322358,11.53960414,143.94,143.92,0.2]
[1768672325045,9.46567481,143.94,143.92,0.2]
[1768672325342,11.53960414,143.94,143.92,0.2]
[1768672335357,11.54233554,143.94,143.92,0.2]
[1768672338664,9.46567481,143.94,143.92,0.2]
[1768672338865,11.54233554,143.94,143.92,0.2]
[1768672340262,9.46567481,143.94,143.92,0.2]
[1768672342661,9.46567481,143.94,143.92,1e-08]
[1768672342964,11.54233554,143.94,143.92,1e-08]
[1768672351871,11.62953936,143.93,143.92,1e-08]
[1768672352074,11.59953935,143.93,143.92,1e-08]
[1768672352269,11.59953935,143.93,143.91,1e-08]
[1768672352475,2.07666073,143.92,143.91,1e-08]
[1768672352878,2.07666073,143.92,143.89,2.55531755]
[1768672353374,24.31737649,143.93,143.88,2.72399911]
[1768672353564,2.07666073,143.9,143.88,0.2]
[1768672353761,2.07666073,143.9,143.88,2.72399911]
[1768672353966,11.40050242,143.9,143.88,0.2]
[1768672354163,4.4508854,143.89,143.88,0.2]
[1768672354371,2.07666073,143.87,143.86,0.2]
[1768672354570,4.4508854,143.88,143.86,0.2]
[1768672355294,2.07666073,143.88,143.86,2.72399911]
[1768672355593,4.4508854,143.88,143.86,2.72399911]
[1768672355751,4.4508854,143.88,143.86,0.2]
[1768672356094,11.40132365,143.88,143.86,0.2]
[1768672356390,9.02709898,143.88,143.86,2.72399911]
[1768672356559,11.40132365,143.88,143.86,0.2]
[1768672357290,9.02709898,143.88,143.86,2.72399911]
[1768672358164,11.40132365,143.88,143.86,0.2]
[1768672358971,9.32466292,143.88,143.86,0.2]
[1768672359257,11.40132365,143.88,143.86,0.2]
[1768672361479,2.07666073,143.87,143.86,0.2]
[1768672363068,2.07666073,143.87,143.85,2.52399911]
[1768672363069,4.4508854,143.86,143.83,9.67625688]
[1768672363457,4.4508854,143.86,143.84,2.52399911]
[1768672363786,6.95109446,143.87,143.84,2.52399911]
[1768672363787,11.40197986,143.87,143.84,2.52399911]
[1768672365666,4.4508854,143.86,143.83,2.72399911]
[1768672366781,11.40236518,143.86,143.83,2.72399911]
[1768672369183,0.64407451,143.85,143.84,2.52399911]
[1768672369365,0.61407452,143.85,143.84,2.52399911]
[1768672369572,0.58407453,143.85,143.84,2.52399911]
[1768672370908,6.95091075,143.87,143.84,2.52399911]
[1768672371187,6.95041818,143.88,143.85,2.52399911]
[1768672372870,9.02659351,143.89,143.85,2.52399911]
[1768672373590,9.02659351,143.89,143.86,2.44975355]
[1768672373798,6.94993278,143.89,143.86,2.44975355]
[1768672374097,22.16945709,143.9,143.87,2.44975355]
[1768672374278,5.17600824,143.89,143.87,2.44975355]
[1768672374477,22.16945709,143.9,143.87,2.44975355]
[1768672374677,5.17600686,143.89,143.87,2.44975355]
[1768672374884,22.16945709,143.9,143.87,2.44975355]
[1768672375196,6.94945709,143.9,143.87,2.44975355]
[1768672376010,17.60687123,143.92,143.88,2.44975355]
[1768672376304,5.17664706,143.91,143.89,2.44975355]
[1768672376481,4.46353196,143.93,143.89,2.44975355]
[1768672376676,5.17750306,143.92,143.89,2.44975355]
[1768672376878,5.17750306,143.91,143.89,2.44975355]
[1768672377098,9.33484867,143.93,143.89,2.44975355]
[1768672377303,5.17796018,143.92,143.89,2.44975355]
[1768672377480,5.17796018,143.91,143.89,2.44975355]
[1768672377684,11.4115094,143.93,143.89,2.44975355]
[1768672377884,5.17796018,143.92,143.89,2.44975355]
[1768672378083,5.17796018,143.91,143.89,2.44975355]
[1768672378297,11.4115094,143.93,143.89,2.44975355]
[1768672378499,5.17844313,143.92,143.9,2.44975355]
[1768672378685,11.41106666,143.94,143.9,2.44975355]
[1768672379007,5.17856996,143.93,143.9,2.44975355]
[1768672379179,11.41106666,143.94,143.91,2.44975355]
[1768672379382,5.17935001,143.93,143.91,2.38975355]
[1768672379697,26.63057106,143.95,143.91,2.38975355]
[1768672379881,5.17942165,143.94,143.91,2.38975355]
[1768672380082,5.17942165,143.93,143.91,2.38975355]
[1768672380281,26.63057106,143.95,143.91,2.38975355]
[1768672380491,5.17958406,143.94,143.91,2.38975355]
[1768672380693,5.17958406,143.93,143.91,2.38975355]
[1768672380892,6.94743917,143.94,143.91,2.38975355]
[1768672381105,5.17957791,143.93,143.91,2.38975355]
[1768672381298,6.94743917,143.94,143.91,2.38975355]
[1768672381501,5.17987726,143.93,143.91,2.38975355]
[1768672381700,6.94743917,143.94,143.91,2.38975355]
[1768672381882,5.17988079,143.93,143.91,2.38975355]
[1768672382081,6.94743917,143.94,143.91,2.38975355]
[1768672382288,5.17987726,143.93,143.91,2.38975355]
[1768672382603,6.94743917,143.94,143.92,2.44975355]
[1768672382806,5.18030266,143.93,143.92,2.44975355]
[1768672383198,6.94743917,143.94,143.92,2.44975355]
[1768672383998,6.94743917,143.94,143.92,2.38975355]
[1768672385905,2.38687123,143.94,143.92,2.38975355]
[1768672386908,9.33372777,143.95,143.92,2.38975355]
[1768672391104,9.33372777,143.95,143.92,2.32975355]
[1768672391409,9.33422266,143.94,143.92,2.32975355]
[1768672392714,9.33372777,143.95,143.92,2.32975355]
[1768672399711,6.94685654,143.95,143.92,2.32975355]
[1768672399910,9.33372777,143.95,143.92,2.32975355]
[1768672400109,6.94685654,143.95,143.92,2.07617356]
[1768672400312,6.94685654,143.95,143.93,2.44975355]
[1768672401999,6.94685654,143.95,143.93,4.52592711]
[1768672403812,6.94656699,143.96,143.94,2.55038037]
[1768672404704,9.51277722,143.96,143.94,2.55038037]
[1768672405104,9.51277722,143.96,143.93,4.62655393]
[1768672406639,9.51277722,143.96,143.93,2.55038037]
[1768672410823,2.56621023,143.95,143.92,2.55038037]
[1768672412213,9.51323729,143.95,143.92,2.55038037]
[1768672415325,9.51323729,143.95,143.9,2.64772148]
[1768672415326,2.56007673,143.94,143.9,2.64772148]
[1768672415508,2.56007673,143.93,143.9,2.64772148]
[1768672415714,9.50797452,143.93,143.9,2.64772148]
[1768672420435,11.58414808,143.93,143.9,9.5969726]
[1768672420612,2.56007673,143.92,143.89,11.67346939]
[1768672420929,2.56007673,143.92,143.89,9.59729583]
[1768672421112,2.56007673,143.92,143.89,9.02574791]
[1768672421320,2.56007673,143.92,143.9,2.64772148]
[1768672421655,6.94789779,143.93,143.9,2.64772148]
[1768672421820,9.50797452,143.93,143.9,2.64772148]
[1768672423737,11.58414808,143.93,143.9,2.64772148]
[1768672428042,11.58414808,143.93,143.9,9.59697257]
[1768672430329,4.63625029,143.93,143.9,9.59697257]
[1768672430838,2.56007673,143.93,143.91,2.64772148]
[1768672439642,4.74693506,143.94,143.91,9.5964461]
[1768672440840,11.69432665,143.94,143.91,9.5964461]
[1768672441052,11.69432665,143.94,143.91,2.64772148]
[1768672441220,2.6707615,143.93,143.91,2.64772148]
[1768672441537,2.6707615,143.93,143.9,9.56818253]
[1768672442531,2.6707615,143.93,143.91,2.61910268]
[1768672445422,11.69432665,143.94,143.91,2.61910268]
[1768672446522,2.6707615,143.94,143.91,9.5678698]
[1768672448837,2.6707615,143.96,143.92,2.61910268]
[1768672449027,2.6707615,143.97,143.93,2.61910268]
[1768672449229,5.19969232,143.96,143.93,2.61910268]
[1768672449431,2.6707615,143.97,143.93,2.61910268]
[1768672450346,4.74693506,143.97,143.93,2.61910268]
[1768672451027,11.69292565,143.97,143.93,9.56678972]
[1768672451233,11.69292565,143.97,143.94,2.61910268]
[1768672452531,9.61675209,143.97,143.94,2.61910268]
[1768672452729,11.69292565,143.97,143.94,2.61910268]
[1768672457432,11.69254815,143.97,143.94,2.61910268]
[1768672459451,2.6707615,143.95,143.92,2.61910268]
[1768672468172,9.61766098,143.95,143.92,2.61910268]
[1768672470262,9.61766098,143.95,143.92,9.56739951]
[1768672471573,2.6707615,143.95,143.92,9.56739951]
[1768672488602,9.61777753,143.95,143.92,2.61910268]
[1768672493065,11.69357359,143.95,143.92,2.61910268]
[1768672499978,9.61777753,143.95,143.92,2.61910268]
[1768672501006,11.69357359,143.95,143.92,2.61910268]
[1768672503700,2.44368748,143.94,143.92,2.61910268]
[1768672503897,1e-08,143.94,143.92,2.61910268]
[1768672504309,9.02281209,143.95,143.92,2.61910268]
[1768672505407,9.02281209,143.95,143.91,2.54529684]
[1768672505700,9.02281209,143.95,143.9,2.54529684]
[1768672505701,2.07579606,143.94,143.9,2.54529684]
[1768672505899,3.38147199,143.94,143.9,2.54529684]
[1768672506280,1.30567593,143.93,143.9,2.54529684]
[1768672506504,3.38147199,143.93,143.9,2.54529684]
[1768672506706,1.30567593,143.93,143.9,2.54529684]
[1768672506884,3.38147199,143.93,143.9,2.54529684]
[1768672507483,10.32950462,143.93,143.9,2.54529684]
[1768672508191,10.32950462,143.93,143.88,9.02588698]
[1768672508393,1.30747412,143.92,143.89,2.54529684]
[1768672510213,10.33175253,143.92,143.89,2.54529684]
[1768672511082,3.38327018,143.92,143.89,2.54529684]
[1768672513004,1.34420679,143.91,143.88,9.49538776]
[1768672513185,3.42000285,143.91,143.88,2.54529684]
[1768672517291,3.42181512,143.91,143.88,2.54529684]
[1768672518310,1.34420679,143.91,143.88,2.54529684]
[1768672518686,8.29315432,143.91,143.88,2.54529684]
[1768672519004,10.37076265,143.91,143.88,2.54529684]
[1768672519604,10.37076265,143.91,143.88,2.48529684]
[1768672519806,2.07760833,143.9,143.88,2.48529684]
[1768672521098,10.37076265,143.91,143.88,2.48529684]
[1768672521302,2.07760833,143.9,143.88,2.48529684]
[1768672522212,10.37076265,143.91,143.88,2.48529684]
[1768672523117,2.07760833,143.9,143.88,2.48529684]
[1768672523589,3.58235662,143.9,143.87,2.63112584]
[1768672524613,10.53178579,143.9,143.87,2.63112584]
[1768672526199,1.52015051,143.89,143.86,2.63112584]
[1768672526403,10.54718801,143.9,143.86,2.63112584]
[1768672527416,8.46957968,143.9,143.86,2.63112584]
[1768672527617,10.54718801,143.9,143.86,2.63112584]
[1768672527995,8.46957968,143.9,143.86,2.63112584]
[1768672528192,10.54718801,143.9,143.87,2.63112584]
[1768672528605,2.07760833,143.89,143.87,2.63112584]
[1768672529718,9.02738419,143.89,143.87,2.63112584]
[1768672530296,2.07760833,143.88,143.87,2.63112584]
[1768672532199,2.07760833,143.88,143.85,2.63112584]
[1768672533617,2.07760833,143.88,143.85,9.58275778]
[1768672533921,2.07760833,143.87,143.85,2.63112584]
[1768672535001,2.07760833,143.86,143.83,7.15255516]
[1768672535804,2.07760833,143.85,143.83,0.2]
[1768672536003,2.07760833,143.86,143.83,0.2]
[1768672537023,2.07760833,143.86,143.84,2.58454344]
[1768672538232,11.7942737,143.86,143.83,2.78454344]
[1768672542129,4.84304304,143.87,143.84,2.58454344]
[1768672543829,4.84304304,143.87,143.84,9.53667116]
[1768672544037,22.17043015,143.88,143.84,9.53667116]
[1768672544038,20.06304304,143.88,143.85,2.58454344]
[1768672545231,15.22,143.88,143.85,2.58454344]
[1768672545524,11.79283188,143.89,143.85,6.95142556]
[1768672545830,11.79283188,143.89,143.86,2.58454344]
[1768672546533,2.07760833,143.89,143.86,2.58454344]
[1768672547534,4.84304304,143.89,143.86,9.5357428]
[1768672547839,2.76543471,143.89,143.86,9.5357428]
[1768672549946,4.84304304,143.89,143.86,9.5357428]
[1768672552246,2.76543471,143.89,143.86,9.5357428]
[1768672557360,4.84304304,143.89,143.86,9.5357428]
[1768672558029,2.76543471,143.89,143.86,9.5357428]
[1768672558248,4.84304304,143.89,143.86,9.5357428]
[1768672558828,2.76543471,143.89,143.86,9.5357428]
[1768672560755,9.71524255,143.89,143.86,2.58454344]
[1768672561253,11.79285088,143.89,143.86,2.58454344]
[1768672561853,6.94878743,143.91,143.86,6.95082187]
[1768672562042,2.07760833,143.9,143.87,2.58752223]
[1768672562443,9.71634318,143.91,143.87,2.58752223]
[1768672562654,4.84516408,143.9,143.87,2.58752223]
[1768672563555,4.84516408,143.9,143.88,2.58752223]
[1768672563556,2.76755575,143.9,143.88,2.58752223]
[1768672563858,11.79395151,143.91,143.88,2.58752223]
[1768672564638,9.71634318,143.91,143.88,2.58752223]
[1768672564960,11.79395151,143.91,143.88,2.58752223]
[1768672566460,27.01395151,143.91,143.88,2.58752223]
[1768672568338,2.76755575,143.9,143.87,9.53814126]
[1768672569364,2.76755575,143.9,143.88,2.58752223]
[1768672569566,6.94878743,143.91,143.88,2.58752223]
[1768672569771,17.98755575,143.93,143.9,2.58752223]
[1768672569971,17.98755575,143.93,143.9,2.46752223]
[1768672570543,24.93548801,143.93,143.9,2.46752223]
[1768672572670,15.22,143.93,143.91,2.58752223]
[1768672572839,15.22,143.93,143.91,2.52752223]
[1768672573668,9.71510168,143.94,143.91,2.52752223]
[1768672574166,6.94754593,143.94,143.91,2.52752223]
[1768672574664,9.71510168,143.94,143.91,2.52752223]
[1768672580874,11.79159318,143.94,143.91,2.52752223]